[Event "FIDE World Rapid Chess Championship 2021"]
[White "Duda, Jan-Krzysztof"]
[Black "Hovhannisyan, Robert"]
[WhiteFideId "1170546"]
[BlackFideId "13302507"]
[WhiteElo "2801"]
[BlackElo "2613"]
[Result "1-0"]
[Round "07"]
[TimeControl "900+10"]
[Date "2021.12.27"]
[WhiteClock "0:01:54"]
[BlackClock "0:00:25"]

1. d4 {[%clk 0:15:00]}  d5 {[%clk 0:15:00]} 2. Nf3 {[%clk 0:15:00]}  Nf6 {[%clk 0:15:00]} 3. c4 {[%clk 0:15:00]}  c6 {[%clk 0:15:00]} 4. e3 {[%clk 0:15:00]}  Bg4 {[%clk 0:15:00]} 5. h3 {[%clk 0:15:00]}  Bh5 {[%clk 0:15:00]} 6. g4 {[%clk 0:15:00]}  Bg6 {[%clk 0:15:00]} 7. Ne5 {[%clk 0:15:38]}  Nbd7 {[%clk 0:15:35]} 8. Nxg6 {[%clk 0:15:38]}  hxg6 {[%clk 0:15:35]} 9. Nd2 {[%clk 0:15:38]}  e6 {[%clk 0:15:35]} 10. Bg2 {[%clk 0:15:38]}  g5 {[%clk 0:15:35]} 11. O-O {[%clk 0:15:14]}  Bd6 {[%clk 0:14:02]} 12. Re1 {[%clk 0:15:14]}  O-O {[%clk 0:14:02]} 13. e4 {[%clk 0:14:53]}  dxe4 {[%clk 0:12:21]} 14. Nxe4 {[%clk 0:14:53]}  Nxe4 {[%clk 0:12:21]} 15. Rxe4 {[%clk 0:14:53]}  Re8 {[%clk 0:12:13]} 16. Be3 {[%clk 0:14:29]}  Nf8 {[%clk 0:08:38]} 17. Qd2 {[%clk 0:10:52]}  f6 {[%clk 0:08:27]} 18. Rd1 {[%clk 0:07:55]}  Ng6 {[%clk 0:08:34]} 19. d5 {[%clk 0:06:55]}  exd5 {[%clk 0:08:34]} 20. cxd5 {[%clk 0:06:55]}  c5 {[%clk 0:08:34]} 21. Re6 {[%clk 0:06:55]}  Nf8 {[%clk 0:06:05]} 22. Be4 {[%clk 0:06:26]}  Qc7 {[%clk 0:06:05]} 23. Qc2 {[%clk 0:06:33]}  Kh8 {[%clk 0:03:17]} 24. Bf5 {[%clk 0:03:11]}  Nxe6 {[%clk 0:03:17]} 25. Bxe6 {[%clk 0:03:11]}  Rad8 {[%clk 0:03:17]} 26. Qg6 {[%clk 0:03:11]}  Rxe6 {[%clk 0:02:25]} 27. dxe6 {[%clk 0:02:18]}  Kg8 {[%clk 0:02:25]} 28. Rxd6 {[%clk 0:01:54]}  Qxd6 {[%clk 0:00:25]} 29. Qf7+ {[%clk 0:01:54]}  Kh7 {[%clk 0:00:25]} 30. e7 {[%clk 0:01:54]}  Rc8 {[%clk 0:00:25]} 31. Qh5+ {[%clk 0:01:54]}  Kg8 {[%clk 0:00:25]} 32. e8=Q+ {[%clk 0:01:54]}  Rxe8 {[%clk 0:00:25]} 33. Qxe8+ {[%clk 0:01:54]}  Kh7 {[%clk 0:00:25]} 34. Qe4+ {[%clk 0:01:54]}  Kh6 {[%clk 0:00:25]} 35. h4 {[%clk 0:01:54]}  g6 {[%clk 0:00:25]} 36. hxg5+ {[%clk 0:01:54]}  fxg5 {[%clk 0:00:25]} 37. Qh1+ {[%clk 0:01:54]}  Kg7 {[%clk 0:00:25]} 38. Qxb7+ {[%clk 0:01:54]} 1-0


[Site "http://www.Chess.com"]

[Event "FIDE World Rapid Chess Championship 2021"]
[White "Volokitin, Andrei"]
[Black "Caruana, Fabiano"]
[WhiteFideId "14107090"]
[BlackFideId "2020009"]
[WhiteElo "2631"]
[BlackElo "2770"]
[Result "1/2-1/2"]
[Round "07"]
[TimeControl "900+10"]
[Date "2021.12.27"]
[WhiteClock "0:00:15"]
[BlackClock "0:00:17"]

1. e4 {[%clk 0:15:00]}  e5 {[%clk 0:15:00]} 2. Nf3 {[%clk 0:15:00]}  Nc6 {[%clk 0:15:00]} 3. Bc4 {[%clk 0:15:00]}  Nf6 {[%clk 0:15:52]} 4. d3 {[%clk 0:15:05]}  Be7 {[%clk 0:15:52]} 5. O-O {[%clk 0:15:05]}  O-O {[%clk 0:15:52]} 6. Re1 {[%clk 0:15:05]}  d6 {[%clk 0:15:52]} 7. a4 {[%clk 0:15:05]}  Be6 {[%clk 0:15:52]} 8. a5 {[%clk 0:15:05]}  a6 {[%clk 0:15:52]} 9. Nbd2 {[%clk 0:15:05]}  Qd7 {[%clk 0:15:52]} 10. Nf1 {[%clk 0:15:05]}  Bxc4 {[%clk 0:15:55]} 11. dxc4 {[%clk 0:14:57]}  Rae8 {[%clk 0:15:55]} 12. c3 {[%clk 0:15:06]}  Bd8 {[%clk 0:13:21]} 13. b4 {[%clk 0:05:54]}  Ne7 {[%clk 0:10:13]} 14. Bg5 {[%clk 0:05:04]}  Ng6 {[%clk 0:10:13]} 15. Bxf6 {[%clk 0:05:04]}  Bxf6 {[%clk 0:10:13]} 16. Ne3 {[%clk 0:05:04]}  Qe6 {[%clk 0:10:13]} 17. g3 {[%clk 0:04:43]}  Ne7 {[%clk 0:08:55]} 18. Kg2 {[%clk 0:03:27]}  g6 {[%clk 0:07:11]} 19. h4 {[%clk 0:03:27]}  Bg7 {[%clk 0:07:11]} 20. h5 {[%clk 0:03:27]}  Bh6 {[%clk 0:07:08]} 21. hxg6 {[%clk 0:01:45]}  hxg6 {[%clk 0:07:08]} 22. Nd5 {[%clk 0:01:45]}  Nxd5 {[%clk 0:07:08]} 23. cxd5 {[%clk 0:01:45]}  Qd7 {[%clk 0:07:08]} 24. Rh1 {[%clk 0:01:45]}  Kg7 {[%clk 0:04:34]} 25. Qd3 {[%clk 0:02:08]}  f5 {[%clk 0:04:34]} 26. Rh4 {[%clk 0:02:08]}  fxe4 {[%clk 0:04:19]} 27. Qxe4 {[%clk 0:00:28]}  Qf5 {[%clk 0:04:19]} 28. Rah1 {[%clk 0:00:28]}  Rh8 {[%clk 0:04:19]} 29. Rg4 {[%clk 0:00:17]}  Kf6 {[%clk 0:02:10]} 30. Qc4 {[%clk 0:00:17]}  e4 {[%clk 0:02:10]} 31. Nh2 {[%clk 0:00:17]}  Bg5 {[%clk 0:02:10]} 32. Qxc7 {[%clk 0:00:17]}  Qxd5 {[%clk 0:02:10]} 33. c4 {[%clk 0:00:13]}  Qc6 {[%clk 0:00:45]} 34. Qxc6 {[%clk 0:00:13]}  bxc6 {[%clk 0:00:45]} 35. Rd1 {[%clk 0:00:13]}  Re6 {[%clk 0:00:45]} 36. f4 {[%clk 0:00:13]}  Bh6 {[%clk 0:00:45]} 37. Rh4 {[%clk 0:00:13]}  Bg7 {[%clk 0:00:45]} 38. Ng4+ {[%clk 0:00:13]}  Ke7 {[%clk 0:00:45]} 39. Rxh8 {[%clk 0:00:13]}  Bxh8 {[%clk 0:00:45]} 40. b5 {[%clk 0:00:13]}  cxb5 {[%clk 0:00:45]} 41. cxb5 {[%clk 0:00:13]}  axb5 {[%clk 0:00:45]} 42. a6 {[%clk 0:00:13]}  Kd7 {[%clk 0:00:45]} 43. a7 {[%clk 0:00:51]}  Re8 {[%clk 0:00:30]} 44. Ne5+ {[%clk 0:00:51]}  Ke6 {[%clk 0:00:30]} 45. Nxg6 {[%clk 0:00:51]}  Bc3 {[%clk 0:00:30]} 46. f5+ {[%clk 0:00:51]}  Kxf5 {[%clk 0:00:30]} 47. Ne7+ {[%clk 0:00:51]}  Kg4 {[%clk 0:00:30]} 48. Nd5 {[%clk 0:00:51]}  b4 {[%clk 0:00:30]} 49. Nc7 {[%clk 0:00:51]}  Rc8 {[%clk 0:00:30]} 50. a8=Q {[%clk 0:00:51]}  Rxa8 {[%clk 0:00:30]} 51. Nxa8 {[%clk 0:00:51]}  e3 {[%clk 0:00:30]} 52. Rb1 {[%clk 0:00:15]}  b3 {[%clk 0:00:17]} 53. Rxb3 {[%clk 0:00:15]}  e2 {[%clk 0:00:17]} 54. Rb1 {[%clk 0:00:15]}  e1=Q {[%clk 0:00:17]} 55. Rxe1 {[%clk 0:00:15]}  Bxe1 {[%clk 0:00:17]} 56. Nb6 {[%clk 0:00:15]}  Bxg3 {[%clk 0:00:17]} 57. Nc4 {[%clk 0:00:15]}  Bf4 {[%clk 0:00:17]} 58. Nxd6 {[%clk 0:00:15]}  Bxd6 {[%clk 0:00:17]} 1/2-1/2


[Site "http://www.Chess.com"]

[Event "FIDE World Rapid Chess Championship 2021"]
[White "Giri, Anish"]
[Black "Van Foreest, Jorden"]
[WhiteFideId "24116068"]
[BlackFideId "1039784"]
[WhiteElo "2767"]
[BlackElo "2563"]
[Result "1/2-1/2"]
[Round "07"]
[TimeControl "900+10"]
[Date "2021.12.27"]
[WhiteClock "0:00:44"]
[BlackClock "0:00:25"]

1. c4 {[%clk 0:15:00]}  Nf6 {[%clk 0:15:00]} 2. Nf3 {[%clk 0:15:00]}  e6 {[%clk 0:15:00]} 3. g3 {[%clk 0:15:22]}  d5 {[%clk 0:15:14]} 4. Bg2 {[%clk 0:15:22]}  d4 {[%clk 0:15:14]} 5. O-O {[%clk 0:15:22]}  c5 {[%clk 0:15:14]} 6. e3 {[%clk 0:15:22]}  Nc6 {[%clk 0:15:14]} 7. d3 {[%clk 0:15:22]}  Be7 {[%clk 0:15:14]} 8. exd4 {[%clk 0:15:22]}  cxd4 {[%clk 0:15:14]} 9. Re1 {[%clk 0:15:22]}  O-O {[%clk 0:15:14]} 10. Ne5 {[%clk 0:15:22]}  Nxe5 {[%clk 0:15:23]} 11. Rxe5 {[%clk 0:13:46]}  h6 {[%clk 0:15:23]} 12. Nd2 {[%clk 0:13:46]}  Qc7 {[%clk 0:14:04]} 13. Re1 {[%clk 0:13:50]}  e5 {[%clk 0:14:04]} 14. a3 {[%clk 0:13:50]}  Re8 {[%clk 0:12:24]} 15. b4 {[%clk 0:12:00]}  a5 {[%clk 0:12:24]} 16. Rb1 {[%clk 0:12:00]}  axb4 {[%clk 0:12:24]} 17. axb4 {[%clk 0:12:00]}  Bf5 {[%clk 0:12:24]} 18. Qf3 {[%clk 0:12:15]}  Bd7 {[%clk 0:10:27]} 19. b5 {[%clk 0:09:14]}  b6 {[%clk 0:08:49]} 20. Ne4 {[%clk 0:09:14]}  Nxe4 {[%clk 0:08:49]} 21. Qxe4 {[%clk 0:09:14]}  Ra2 {[%clk 0:08:23]} 22. Rb2 {[%clk 0:07:06]}  Rxb2 {[%clk 0:08:23]} 23. Bxb2 {[%clk 0:07:06]}  Bc5 {[%clk 0:08:23]} 24. Ra1 {[%clk 0:07:03]}  g6 {[%clk 0:05:19]} 25. Qe2 {[%clk 0:07:03]}  Bf5 {[%clk 0:05:19]} 26. Bd5 {[%clk 0:06:14]}  Be6 {[%clk 0:03:53]} 27. Bc6 {[%clk 0:06:14]}  Bd7 {[%clk 0:03:53]} 28. Be4 {[%clk 0:06:14]}  Bb4 {[%clk 0:03:02]} 29. Bc1 {[%clk 0:05:52]}  Kg7 {[%clk 0:03:02]} 30. Ra4 {[%clk 0:05:52]}  Ba5 {[%clk 0:03:02]} 31. Bd2 {[%clk 0:04:31]}  Bxd2 {[%clk 0:01:36]} 32. Qxd2 {[%clk 0:04:31]}  Re7 {[%clk 0:01:36]} 33. Qb4 {[%clk 0:04:31]}  Bf5 {[%clk 0:01:36]} 34. Qe1 {[%clk 0:04:31]}  Bxe4 {[%clk 0:00:34]} 35. Qxe4 {[%clk 0:04:03]}  Qb7 {[%clk 0:00:34]} 36. Qxb7 {[%clk 0:04:03]}  Rxb7 {[%clk 0:00:34]} 37. Ra8 {[%clk 0:04:03]}  e4 {[%clk 0:00:34]} 38. Rd8 {[%clk 0:04:03]}  exd3 {[%clk 0:00:34]} 39. Rxd4 {[%clk 0:04:03]}  Rc7 {[%clk 0:00:34]} 40. Kf1 {[%clk 0:03:05]}  Kf6 {[%clk 0:00:38]} 41. Rxd3 {[%clk 0:03:05]}  Rxc4 {[%clk 0:00:38]} 42. Rd6+ {[%clk 0:03:05]}  Ke5 {[%clk 0:00:38]} 43. Rxb6 {[%clk 0:03:05]}  Rb4 {[%clk 0:00:38]} 44. Kg2 {[%clk 0:03:05]}  Rb3 {[%clk 0:00:38]} 45. g4 {[%clk 0:03:05]}  Kf4 {[%clk 0:00:38]} 46. h3 {[%clk 0:03:05]}  Kg5 {[%clk 0:00:38]} 47. Rb7 {[%clk 0:02:07]}  h5 {[%clk 0:00:35]} 48. gxh5 {[%clk 0:02:07]}  Kxh5 {[%clk 0:00:35]} 49. b6 {[%clk 0:02:07]}  Kg5 {[%clk 0:00:35]} 50. Rb8 {[%clk 0:02:07]}  Kf5 {[%clk 0:00:35]} 51. Rb7 {[%clk 0:02:07]}  Kg5 {[%clk 0:00:35]} 52. f4+ {[%clk 0:02:07]}  Kf6 {[%clk 0:00:25]} 53. h4 {[%clk 0:00:44]}  Ke6 {[%clk 0:00:25]} 54. f5+ {[%clk 0:00:44]}  Kxf5 {[%clk 0:00:25]} 55. Rxf7+ {[%clk 0:00:44]}  Kg4 {[%clk 0:00:25]} 56. Rf6 {[%clk 0:00:44]}  Kxh4 {[%clk 0:00:25]} 57. Rxg6 {[%clk 0:00:44]}  Kh5 {[%clk 0:00:25]} 58. Rc6 {[%clk 0:00:44]}  Kg5 {[%clk 0:00:25]} 59. Kf2 {[%clk 0:00:44]}  Kf5 {[%clk 0:00:25]} 60. Ke2 {[%clk 0:00:44]}  Ke5 {[%clk 0:00:25]} 61. Kd2 {[%clk 0:00:44]}  Kd5 {[%clk 0:00:25]} 62. Rh6 {[%clk 0:00:44]}  Kc5 {[%clk 0:00:25]} 63. Kc2 {[%clk 0:00:44]}  Rxb6 {[%clk 0:00:25]} 64. Rxb6 {[%clk 0:00:44]}  Kxb6 {[%clk 0:00:25]} 1/2-1/2


[Site "http://www.Chess.com"]

[Event "FIDE World Rapid Chess Championship 2021"]
[White "Movsesian, Sergei"]
[Black "Maghsoodloo, Parham"]
[WhiteFideId "310204"]
[BlackFideId "12539929"]
[WhiteElo "2667"]
[BlackElo "2512"]
[Result "1-0"]
[Round "07"]
[TimeControl "900+10"]
[Date "2021.12.27"]
[WhiteClock "0:01:21"]
[BlackClock "0:00:00"]

1. e4 {[%clk 0:15:00]}  c5 {[%clk 0:15:00]} 2. Nc3 {[%clk 0:15:00]}  Nc6 {[%clk 0:15:00]} 3. g3 {[%clk 0:15:00]}  g6 {[%clk 0:15:00]} 4. Bg2 {[%clk 0:15:00]}  Bg7 {[%clk 0:15:00]} 5. d3 {[%clk 0:15:00]}  Rb8 {[%clk 0:15:00]} 6. Be3 {[%clk 0:15:00]}  d6 {[%clk 0:15:00]} 7. Qd2 {[%clk 0:15:00]}  b5 {[%clk 0:15:00]} 8. Nge2 {[%clk 0:16:17]}  b4 {[%clk 0:16:02]} 9. Nd1 {[%clk 0:16:17]}  a5 {[%clk 0:16:02]} 10. O-O {[%clk 0:16:17]}  Nd4 {[%clk 0:16:02]} 11. Nc1 {[%clk 0:15:28]}  h5 {[%clk 0:14:27]} 12. c3 {[%clk 0:15:28]}  Nb5 {[%clk 0:14:27]} 13. Ne2 {[%clk 0:13:33]}  h4 {[%clk 0:14:13]} 14. Bg5 {[%clk 0:12:19]}  hxg3 {[%clk 0:13:28]} 15. fxg3 {[%clk 0:12:19]}  Nf6 {[%clk 0:13:28]} 16. Nf2 {[%clk 0:12:19]}  Nc7 {[%clk 0:11:58]} 17. a3 {[%clk 0:10:07]}  Ne6 {[%clk 0:10:50]} 18. Be3 {[%clk 0:08:36]}  Nd7 {[%clk 0:10:50]} 19. axb4 {[%clk 0:08:36]}  axb4 {[%clk 0:10:50]} 20. d4 {[%clk 0:08:16]}  Nb6 {[%clk 0:09:17]} 21. Qd3 {[%clk 0:08:16]}  Bd7 {[%clk 0:09:17]} 22. Nf4 {[%clk 0:07:09]}  Nc7 {[%clk 0:09:13]} 23. dxc5 {[%clk 0:05:02]}  Bb5 {[%clk 0:07:53]} 24. cxb6 {[%clk 0:05:02]}  Bxd3 {[%clk 0:07:53]} 25. bxc7 {[%clk 0:05:02]}  Qxc7 {[%clk 0:07:53]} 26. N2xd3 {[%clk 0:05:02]}  bxc3 {[%clk 0:07:53]} 27. Ra7 {[%clk 0:05:02]}  Qc4 {[%clk 0:07:53]} 28. bxc3 {[%clk 0:05:02]}  e6 {[%clk 0:06:47]} 29. e5 {[%clk 0:04:00]}  O-O {[%clk 0:05:57]} 30. exd6 {[%clk 0:02:18]}  Qxc3 {[%clk 0:02:58]} 31. Rc7 {[%clk 0:02:27]}  Qa3 {[%clk 0:02:58]} 32. Bc5 {[%clk 0:02:27]}  Qa5 {[%clk 0:02:58]} 33. h4 {[%clk 0:01:46]}  Rb3 {[%clk 0:01:50]} 34. Kh2 {[%clk 0:01:46]}  e5 {[%clk 0:01:50]} 35. Nxg6 {[%clk 0:01:46]}  Rxd3 {[%clk 0:01:50]} 36. Nxf8 {[%clk 0:01:21]}  Rd2 {[%clk 0:00:00]} 37. Rcxf7 {[%clk 0:01:21]}  e4 {[%clk 0:00:00]} 38. d7 {[%clk 0:01:21]}  Qa2 {[%clk 0:00:00]} 39. R7f2 {[%clk 0:01:21]}  Bxf8 {[%clk 0:00:00]} 40. Rxd2 {[%clk 0:01:21]}  Qxd2 {[%clk 0:00:00]} 41. Rxf8+ {[%clk 0:01:21]} 1-0


[Site "http://www.Chess.com"]

[Event "FIDE World Rapid Chess Championship 2021"]
[White "Rapport, Richard"]
[Black "Dreev, Aleksey"]
[WhiteFideId "738590"]
[BlackFideId "4100107"]
[WhiteElo "2750"]
[BlackElo "2621"]
[Result "1-0"]
[Round "07"]
[TimeControl "900+10"]
[Date "2021.12.27"]
[WhiteClock "0:01:14"]
[BlackClock "0:00:00"]

1. e4 {[%clk 0:15:00]}  c6 {[%clk 0:15:00]} 2. d4 {[%clk 0:15:00]}  d5 {[%clk 0:15:00]} 3. exd5 {[%clk 0:15:00]}  cxd5 {[%clk 0:15:00]} 4. Nf3 {[%clk 0:15:00]}  Nc6 {[%clk 0:15:00]} 5. c3 {[%clk 0:15:00]}  Bg4 {[%clk 0:15:37]} 6. h3 {[%clk 0:15:41]}  Bxf3 {[%clk 0:11:55]} 7. Qxf3 {[%clk 0:15:46]}  e6 {[%clk 0:11:55]} 8. Bd3 {[%clk 0:15:46]}  g6 {[%clk 0:11:55]} 9. Nd2 {[%clk 0:15:46]}  Bh6 {[%clk 0:11:55]} 10. h4 {[%clk 0:15:46]}  Qf6 {[%clk 0:11:40]} 11. Qe2 {[%clk 0:14:27]}  Nge7 {[%clk 0:11:40]} 12. Bb5 {[%clk 0:13:30]}  Qg7 {[%clk 0:10:20]} 13. g4 {[%clk 0:11:07]}  Bf4 {[%clk 0:09:47]} 14. Qf3 {[%clk 0:11:07]}  g5 {[%clk 0:08:55]} 15. hxg5 {[%clk 0:10:09]}  Bxg5 {[%clk 0:08:55]} 16. Qg3 {[%clk 0:10:09]}  Qf6 {[%clk 0:08:55]} 17. Rh5 {[%clk 0:10:09]}  h6 {[%clk 0:07:50]} 18. Nc4 {[%clk 0:08:54]}  Bxc1 {[%clk 0:06:48]} 19. Nd6+ {[%clk 0:06:06]}  Kd7 {[%clk 0:06:48]} 20. Rxc1 {[%clk 0:06:06]}  Rab8 {[%clk 0:06:48]} 21. c4 {[%clk 0:06:06]}  Rhg8 {[%clk 0:06:48]} 22. Kf1 {[%clk 0:06:10]}  a6 {[%clk 0:02:46]} 23. Ba4 {[%clk 0:06:10]}  Qg6 {[%clk 0:02:26]} 24. Rh4 {[%clk 0:04:23]}  h5 {[%clk 0:01:31]} 25. Qf4 {[%clk 0:02:29]}  Qd3+ {[%clk 0:01:31]} 26. Kg1 {[%clk 0:02:29]}  dxc4 {[%clk 0:01:31]} 27. Nxc4 {[%clk 0:02:29]}  b5 {[%clk 0:00:47]} 28. d5 {[%clk 0:01:33]}  exd5 {[%clk 0:00:47]} 29. Qd6+ {[%clk 0:01:33]}  Ke8 {[%clk 0:00:47]} 30. Ne5 {[%clk 0:01:33]}  Qd2 {[%clk 0:00:47]} 31. Rxc6 {[%clk 0:01:33]}  Rd8 {[%clk 0:00:47]} 32. Qf6 {[%clk 0:01:33]}  Qe1+ {[%clk 0:00:47]} 33. Kh2 {[%clk 0:01:33]}  Rf8 {[%clk 0:00:47]} 34. Rc7 {[%clk 0:01:33]}  Qb4 {[%clk 0:00:47]} 35. gxh5 {[%clk 0:01:14]}  Qd6 {[%clk 0:00:00]} 36. Rxe7+ {[%clk 0:01:14]} 1-0


[Site "http://www.Chess.com"]

[Event "FIDE World Rapid Chess Championship 2021"]
[White "Wojtaszek, Radoslaw"]
[Black "Petrosian, Tigran L."]
[WhiteFideId "1118358"]
[BlackFideId "13301616"]
[WhiteElo "2743"]
[BlackElo "2621"]
[Result "1-0"]
[Round "07"]
[TimeControl "900+10"]
[Date "2021.12.27"]
[WhiteClock "0:07:33"]
[BlackClock "0:00:29"]

1. d4 {[%clk 0:15:00]}  d6 {[%clk 0:15:00]} 2. Nf3 {[%clk 0:15:00]}  Bg4 {[%clk 0:15:00]} 3. c4 {[%clk 0:15:00]}  Bxf3 {[%clk 0:15:00]} 4. exf3 {[%clk 0:15:00]}  c6 {[%clk 0:15:00]} 5. d5 {[%clk 0:15:00]}  Nf6 {[%clk 0:15:00]} 6. Nc3 {[%clk 0:15:00]}  g6 {[%clk 0:15:00]} 7. Be2 {[%clk 0:15:16]}  Bg7 {[%clk 0:16:09]} 8. O-O {[%clk 0:15:16]}  O-O {[%clk 0:16:09]} 9. Be3 {[%clk 0:15:16]}  Nbd7 {[%clk 0:16:09]} 10. Rc1 {[%clk 0:15:16]}  cxd5 {[%clk 0:16:09]} 11. cxd5 {[%clk 0:15:16]}  a6 {[%clk 0:16:09]} 12. f4 {[%clk 0:15:16]}  Rc8 {[%clk 0:16:09]} 13. g4 {[%clk 0:15:07]}  Qa5 {[%clk 0:15:08]} 14. g5 {[%clk 0:13:54]}  Rxc3 {[%clk 0:15:08]} 15. Rxc3 {[%clk 0:12:05]}  Nxd5 {[%clk 0:09:22]} 16. Ra3 {[%clk 0:12:05]}  Nxe3 {[%clk 0:09:22]} 17. Rxa5 {[%clk 0:12:05]}  Nxd1 {[%clk 0:09:22]} 18. Rxd1 {[%clk 0:12:05]}  Bxb2 {[%clk 0:09:44]} 19. Rb1 {[%clk 0:11:23]}  Bc3 {[%clk 0:09:44]} 20. Ra3 {[%clk 0:11:23]}  Bd2 {[%clk 0:09:44]} 21. Rxb7 {[%clk 0:11:23]}  Nc5 {[%clk 0:09:44]} 22. Rxe7 {[%clk 0:11:23]}  Bxf4 {[%clk 0:09:44]} 23. Rf3 {[%clk 0:11:21]}  Bxg5 {[%clk 0:02:15]} 24. Rexf7 {[%clk 0:07:42]}  Rxf7 {[%clk 0:02:15]} 25. Bc4 {[%clk 0:07:42]}  a5 {[%clk 0:02:15]} 26. Rxf7 {[%clk 0:07:42]}  Kh8 {[%clk 0:02:15]} 27. f4 {[%clk 0:07:42]}  Bh4 {[%clk 0:02:15]} 28. Kg2 {[%clk 0:07:42]}  Be1 {[%clk 0:00:29]} 29. Rf6 {[%clk 0:07:33]}  Kg7 {[%clk 0:00:29]} 30. Rxd6 {[%clk 0:07:33]}  Bb4 {[%clk 0:00:29]} 31. Kf3 {[%clk 0:07:33]}  Kh6 {[%clk 0:00:29]} 32. Rd8 {[%clk 0:07:33]}  Kg7 {[%clk 0:00:29]} 33. Rc8 {[%clk 0:07:33]}  Kh6 {[%clk 0:00:29]} 34. Rc7 {[%clk 0:07:33]} 1-0


[Site "http://www.Chess.com"]

[Event "FIDE World Rapid Chess Championship 2021"]
[White "Dubov, Daniil"]
[Black "Efimenko, Zahar"]
[WhiteFideId "24126055"]
[BlackFideId "14107201"]
[WhiteElo "2735"]
[BlackElo "2609"]
[Result "1/2-1/2"]
[Round "07"]
[TimeControl "900+10"]
[Date "2021.12.27"]
[WhiteClock "0:05:30"]
[BlackClock "0:00:33"]

1. c4 {[%clk 0:15:00]}  e5 {[%clk 0:15:00]} 2. Nc3 {[%clk 0:15:00]}  d6 {[%clk 0:15:00]} 3. g3 {[%clk 0:15:00]}  f5 {[%clk 0:15:00]} 4. Bg2 {[%clk 0:15:00]}  Nf6 {[%clk 0:15:00]} 5. e3 {[%clk 0:16:03]}  Be7 {[%clk 0:15:00]} 6. Nge2 {[%clk 0:16:03]}  O-O {[%clk 0:15:00]} 7. b3 {[%clk 0:16:03]}  c6 {[%clk 0:15:00]} 8. Bb2 {[%clk 0:16:03]}  Be6 {[%clk 0:15:00]} 9. O-O {[%clk 0:16:03]}  Nbd7 {[%clk 0:15:00]} 10. d4 {[%clk 0:16:03]}  Bf7 {[%clk 0:14:38]} 11. d5 {[%clk 0:15:00]}  c5 {[%clk 0:14:38]} 12. f4 {[%clk 0:15:00]}  e4 {[%clk 0:14:38]} 13. h3 {[%clk 0:15:00]}  Bh5 {[%clk 0:14:38]} 14. g4 {[%clk 0:15:00]}  fxg4 {[%clk 0:12:43]} 15. Ng3 {[%clk 0:14:35]}  gxh3 {[%clk 0:12:43]} 16. Nxh5 {[%clk 0:14:35]}  hxg2 {[%clk 0:12:43]} 17. Rf2 {[%clk 0:14:35]}  Qe8 {[%clk 0:11:46]} 18. Ng3 {[%clk 0:15:00]}  Qg6 {[%clk 0:08:25]} 19. Rxg2 {[%clk 0:15:02]}  Ng4 {[%clk 0:08:25]} 20. Qe2 {[%clk 0:15:02]}  Bf6 {[%clk 0:08:25]} 21. Nf1 {[%clk 0:13:10]}  h5 {[%clk 0:07:19]} 22. Nh2 {[%clk 0:13:10]}  Rae8 {[%clk 0:07:05]} 23. Nxg4 {[%clk 0:07:56]}  hxg4 {[%clk 0:07:05]} 24. Rxg4 {[%clk 0:07:56]}  Qf5 {[%clk 0:07:05]} 25. Rf1 {[%clk 0:07:56]}  a6 {[%clk 0:06:43]} 26. Rf2 {[%clk 0:07:10]}  Kf7 {[%clk 0:06:43]} 27. Rh2 {[%clk 0:06:39]}  Rh8 {[%clk 0:03:59]} 28. Rxh8 {[%clk 0:06:39]}  Rxh8 {[%clk 0:03:59]} 29. Qg2 {[%clk 0:06:39]}  Qh5 {[%clk 0:03:48]} 30. a4 {[%clk 0:05:58]}  Qh3 {[%clk 0:03:48]} 31. Rg3 {[%clk 0:05:58]}  Qxg2+ {[%clk 0:01:37]} 32. Rxg2 {[%clk 0:05:13]}  Bxc3 {[%clk 0:01:37]} 33. Bxc3 {[%clk 0:05:13]}  Nf6 {[%clk 0:01:37]} 34. Bxf6 {[%clk 0:05:30]}  gxf6 {[%clk 0:00:33]} 35. Rh2 {[%clk 0:05:30]}  Rxh2 {[%clk 0:00:33]} 36. Kxh2 {[%clk 0:05:30]}  f5 {[%clk 0:00:33]} 1/2-1/2


[Site "http://www.Chess.com"]

[Event "FIDE World Rapid Chess Championship 2021"]
[White "Onyshchuk, Volodymyr"]
[Black "Shevchenko, Kirill"]
[WhiteFideId "14114038"]
[BlackFideId "14129574"]
[WhiteElo "2687"]
[BlackElo "2508"]
[Result "1/2-1/2"]
[Round "07"]
[TimeControl "900+10"]
[Date "2021.12.27"]
[WhiteClock "0:03:47"]
[BlackClock "0:00:36"]

1. Nf3 {[%clk 0:15:00]}  Nf6 {[%clk 0:15:00]} 2. g3 {[%clk 0:15:00]}  g6 {[%clk 0:15:00]} 3. Bg2 {[%clk 0:15:00]}  Bg7 {[%clk 0:15:00]} 4. O-O {[%clk 0:15:00]}  O-O {[%clk 0:15:00]} 5. Re1 {[%clk 0:15:00]}  d6 {[%clk 0:15:00]} 6. e4 {[%clk 0:15:24]}  e5 {[%clk 0:15:20]} 7. d4 {[%clk 0:15:24]}  exd4 {[%clk 0:15:20]} 8. Nxd4 {[%clk 0:15:24]}  Re8 {[%clk 0:15:20]} 9. Nc3 {[%clk 0:15:24]}  Bd7 {[%clk 0:15:20]} 10. h3 {[%clk 0:15:24]}  Nc6 {[%clk 0:15:20]} 11. Nde2 {[%clk 0:15:24]}  b5 {[%clk 0:15:20]} 12. a3 {[%clk 0:15:24]}  Rb8 {[%clk 0:15:03]} 13. g4 {[%clk 0:14:50]}  a5 {[%clk 0:14:22]} 14. Ng3 {[%clk 0:13:45]}  b4 {[%clk 0:10:54]} 15. axb4 {[%clk 0:13:45]}  axb4 {[%clk 0:10:54]} 16. Nce2 {[%clk 0:13:45]}  Bc8 {[%clk 0:10:53]} 17. Bg5 {[%clk 0:12:07]}  h6 {[%clk 0:09:45]} 18. Be3 {[%clk 0:11:29]}  Bb7 {[%clk 0:09:45]} 19. Qc1 {[%clk 0:11:29]}  Kh7 {[%clk 0:09:45]} 20. Nf4 {[%clk 0:10:33]}  Ra8 {[%clk 0:06:43]} 21. Rxa8 {[%clk 0:10:33]}  Qxa8 {[%clk 0:06:43]} 22. Nd3 {[%clk 0:10:33]}  Ne5 {[%clk 0:06:43]} 23. Nxe5 {[%clk 0:09:46]}  Rxe5 {[%clk 0:05:45]} 24. Bd4 {[%clk 0:09:46]}  Re6 {[%clk 0:05:45]} 25. f3 {[%clk 0:08:45]}  c5 {[%clk 0:05:18]} 26. Bf2 {[%clk 0:08:45]}  Nd7 {[%clk 0:05:18]} 27. b3 {[%clk 0:06:20]}  d5 {[%clk 0:04:04]} 28. exd5 {[%clk 0:04:16]}  Rxe1+ {[%clk 0:03:45]} 29. Qxe1 {[%clk 0:04:16]}  Bxd5 {[%clk 0:03:45]} 30. Ne4 {[%clk 0:04:25]}  Qc6 {[%clk 0:03:45]} 31. Qd2 {[%clk 0:04:25]}  Ne5 {[%clk 0:03:09]} 32. Qe3 {[%clk 0:03:33]}  Bxe4 {[%clk 0:03:09]} 33. Qxe4 {[%clk 0:03:33]}  Qxe4 {[%clk 0:03:09]} 34. fxe4 {[%clk 0:03:33]}  c4 {[%clk 0:00:44]} 35. bxc4 {[%clk 0:03:43]}  Nxc4 {[%clk 0:00:44]} 36. Bc5 {[%clk 0:03:43]}  Bc3 {[%clk 0:00:44]} 37. Bf1 {[%clk 0:03:43]}  Nd2 {[%clk 0:00:44]} 38. Bd3 {[%clk 0:03:43]}  b3 {[%clk 0:00:44]} 39. cxb3 {[%clk 0:03:43]}  Nxb3 {[%clk 0:00:44]} 40. Ba3 {[%clk 0:03:43]}  Kg7 {[%clk 0:00:44]} 41. Kf2 {[%clk 0:03:43]}  Bd4+ {[%clk 0:00:44]} 42. Kf3 {[%clk 0:03:43]}  Na5 {[%clk 0:00:44]} 43. Bb5 {[%clk 0:03:43]}  Be5 {[%clk 0:00:36]} 44. Bc5 {[%clk 0:03:47]}  Nb7 {[%clk 0:00:36]} 45. Bb4 {[%clk 0:03:47]}  Nd8 {[%clk 0:00:36]} 46. Bd7 {[%clk 0:03:47]}  Bd4 {[%clk 0:00:36]} 47. Be7 {[%clk 0:03:47]}  Nb7 {[%clk 0:00:36]} 48. Bc6 {[%clk 0:03:47]}  Nc5 {[%clk 0:00:36]} 1/2-1/2


[Site "http://www.Chess.com"]